[Event "ROU-chT Men Superliga 2018"]
[Site "Sovata"]
[Date "2018.12.01"]
[Round "8"]
[White "Petrisor, Adrian-Marian"]
[Black "Vrencian, Lehel"]
[Result "0-1"]
[ECO "D26"]
[WhiteElo "2425"]
[BlackElo "2321"]
[Annotator "RC"]
[PlyCount "90"]
[EventDate "2018.11.24"]
[EventType "team-tourn"]
[EventCountry "ROU"]
[SourceTitle "playchess.com"]
[Source "ChessBase"]
[SourceQuality "1"]
[TimeControl "40/5400+30:1800+30"]

1. d4 {[%emt 0:00:00]} d5 {[%emt 0:00:00]} 2. Nf3 {[%emt 0:00:00]} Nf6 {[%emt 0:00:18]} 3. c4 {[%emt 0:00:00]} dxc4 {[%emt 0:00:34]} 4. e3 {[%emt 0:00:11]} e6 {[%emt 0:00:11]} 5. Bxc4 {[%emt 0:00:12]} a6 {[%emt 0:00:03]} 6. O-O {[%emt 0:00:27]} Nbd7 {[%emt 0:00:08]} 7. a4 {[%emt 0:00:40]} c5 {[%emt 0:00:11]} 8. Qe2 {[%emt 0:00:26]} cxd4 {[%emt 0:15:15]} 9. exd4 {[%emt 0:00:19]} Nb6 {[%emt 0:00:29]} 10. Bb3 {[%emt 0:00:12]} Be7 {[%emt 0:00:38]} 11. Nc3 {[%emt 0:00:13]} O-O {[%emt 0:00:22]} 12. Rd1 {[%emt 0:00:05]} Nbd5 {[%emt 0:01:10]} 13. Ne5 {[%emt 0:00:10]} Bd7 {[%emt 0:06:35]} 14. Rd3 {[%emt 0:00:15]} Bc6 {[%emt 0:08:32]} 15. Rg3 {[%emt 0:00:10]} Nxc3 {[%emt 0:01:43]} 16. bxc3 {[%emt 0:00:05]} Be4 {[%emt 0:22:06]} 17. Bh6 {[%emt 0:06:16]} Bg6 {[%emt 0:03:13]} 18. Nxg6 {[%emt 0:00:09]} hxg6 {[%emt 0:00:07]} 19. Bd2 {[%emt 0:01:51]} Bd6 {[%emt 0:05:05]} 20. Rh3 {[%emt 0:01:49]} Re8 {[%emt 0:03:18]} 21. c4 {[%emt 0:07:48]} Qc7 {[%emt 0:00:17]} 22. a5 {[%emt 0:04:47]} Rac8 {[%emt 0:02:13]} 23. Rb1 {[%emt 0:03:49]} Bf4 {[%emt 0:01:44]} 24. Bb4 {[%emt 0:04:42]} g5 {[%emt 0:05:28]} 25. Ba4 {[%emt 0:14:36]} Red8 {[%emt 0:03:33]} 26. Bc5 {[%emt 0:00:09]} Qxa5 {[%emt 0:02:26]} 27. Ra3 {[%emt 0:03:20]} Rxc5 {[%emt 0:02:59]} 28. dxc5 {[%emt 0:00:28]} Rd2 {[%emt 0:01:21]} 29. Qf3 {[%emt 0:01:38]} Qxc5 {[%emt 0:01:44]} 30. Rab3 {[%emt 0:11:44]} e5 {[%emt 0:06:53]} 31. Rxb7 {[%emt 0:27:21]} g4 {[%emt 0:04:38]} 32. Rb8+ {[%emt 0:00:39]} Kh7 {[%emt 0:00:05]} 33. Bc2+ {[%emt 0:04:02]} g6 {[%emt 0:00:12]} 34. Qb7 {[%emt 0:00:14]} Qxf2+ {[%emt 0:00:47]} 35. Kh1 {[%emt 0:00:02]} Kg7 {[%emt 0:01:24]} 36. Bxg6 {[%emt 0:02:58]} Kxg6 {[%emt 0:00:06]} 37. Rf8 {[%emt 0:00:05]} Rd7 {[%emt 0:00:43]} 38. Rg8+ {[%emt 0:02:09]} Nxg8 {[%emt 0:01:12]} 39. Qxd7 {[%emt 0:00:04]} Nf6 {[%emt 0:00:00]} 40. Qd1 {[%emt 0:00:00]} Kg7 {[%emt 0:00:00]} 41. Qd3 {[%emt 0:09:25]} e4 {[%emt 0:03:21]} 42. Qc3 {[%emt 0:01:22]} e3 {[%emt 0:00:48]} 43. Qd4 {[%emt 0:01:54]} g3 {[%emt 0:01:44]} 44. c5 {[%emt 0:02:25]} e2 {[%emt 0:00:29]} 45. Qa1 {[%emt 0:00:05]} Be5 {[%emt 0:00:51]} 0-1

[Event "ROU-chT Men Superliga 2018"]
[Site "Sovata"]
[Date "2018.12.01"]
[Round "8"]
[White "Moldovan, Daniel"]
[Black "Ileana, George"]
[Result "0-1"]
[ECO "B70"]
[WhiteElo "2406"]
[BlackElo "2318"]
[Annotator "NA"]
[PlyCount "74"]
[EventDate "2018.11.24"]
[EventType "team-tourn"]
[EventCountry "ROU"]
[SourceTitle "playchess.com"]
[Source "ChessBase"]
[SourceQuality "1"]
[TimeControl "40/5400+30:1800+30"]

1. e4 {[%emt 0:00:00]} c5 {[%emt 0:00:00]} 2. Nf3 {[%emt 0:00:03]} d6 {[%emt 0:00:00]} 3. d4 {[%emt 0:00:04]} cxd4 {[%emt 0:00:00]} 4. Nxd4 {[%emt 0:00:03]} Nf6 {[%emt 0:00:00]} 5. Nc3 {[%emt 0:00:05]} g6 {[%emt 0:00:01]} 6. Be2 {[%emt 0:00:06]} Bg7 {[%emt 0:00:07]} 7. O-O {[%emt 0:00:05]} Nc6 {[%emt 0:00:33]} 8. Nb3 {[%emt 0:00:04]} O-O {[%emt 0:00:08]} 9. Re1 {[%emt 0:00:03]} Be6 {[%emt 0:01:09]} 10. Bf1 {[%emt 0:00:08]} Rc8 {[%emt 0:00:49]} 11. Nd5 {[%emt 0:03:04]} Ne5 {[%emt 0:07:33]} 12. c3 {[%emt 0:03:44] B70: Sicilian Dragon: 6 g3 and 6 Be2 (without a later Be3)} Nc4 {[%emt 0:04:38]} 13. Nxf6+ $146 {[%emt 0:27:31]} ({Predecessor:} 13. a4 Bxd5 14. exd5 Nb6 15. g4 a5 16. Bg2 Nc4 17. Nd4 Nb6 18. Nb5 Rc5 19. Be3 Rxd5 20. Bxd5 Nbxd5 {½-½ (55) Arribas Lopez,A (2442)-Espinosa Aranda,A (2397) Linares 2010}) 13... Bxf6 {[%emt 0:00:17]} 14. Nd4 {[%emt 0:00:10]} Bd7 {[%emt 0:01:46]} 15. a4 {[%emt 0:05:48]} Qb6 {[%emt 0:02:42]} 16. Bxc4 {[%emt 0:19:23]} Rxc4 {[%emt 0:05:34]} 17. a5 {[%emt 0:00:08]} Qc7 {[%emt 0:01:03]} 18. Qd3 {[%emt 0:01:50]} a6 {[%emt 0:01:24]} 19. Bd2 {[%emt 0:00:25]} Rc5 {[%emt 0:02:26]} 20. b4 {[%emt 0:12:54]} Rc4 {[%emt 0:00:08]} 21. Ra3 {[%emt 0:02:33]} Rc8 {[%emt 0:00:57]} 22. h3 {[%emt 0:04:29]} Qd8 {[%emt 0:00:26]} 23. f4 {[%emt 0:02:18]} e5 {[%emt 0:02:28]} 24. Nf3 {[%emt 0:05:51]} Bb5 {[%emt 0:00:38]} 25. Qe3 {[%emt 0:00:01]} exf4 {[%emt 0:01:14]} 26. Qxf4 {[%emt 0:00:02]} d5 {[%emt 0:00:29]} 27. Nd4 {[%emt 0:01:22]} Bxd4+ {[%emt 0:00:53]} 28. cxd4 {[%emt 0:00:06]} dxe4 {[%emt 0:00:16]} 29. Be3 {[%emt 0:01:03]} Qe7 {[%emt 0:03:03]} 30. d5 {[%emt 0:02:45]} Qxb4 {[%emt 0:02:56]} 31. Raa1 $17 {[%emt 0:00:01]} Rd8 {[%emt 0:02:08]} 32. Rad1 {[%emt 0:01:20]} Qd6 {[%emt 0:04:18]} 33. Qh4 {[%emt 0:00:51]} Rd7 {[%emt 0:04:03]} 34. Bf4 {[%emt 0:01:29]} e3 {[%emt 0:01:44]} 35. Bxd6 {[%emt 0:02:36]} Rxh4 {[%emt 0:00:06]} 36. Bc5 {[%emt 0:00:16]} e2 {[%emt 0:00:26]} 37. Rd2 {[%emt 0:00:02]} Rh5 {[%emt 0:00:16]} 0-1

[Event "ROU-chT Men Superliga 2018"]
[Site "Sovata"]
[Date "2018.12.01"]
[Round "8"]
[White "Carmaciu, Lucian-Catalin"]
[Black "Popescu, Daniel-Vasilica"]
[Result "1-0"]
[ECO "A80"]
[WhiteElo "2374"]
[BlackElo "2131"]
[Annotator "NA"]
[PlyCount "81"]
[EventDate "2018.11.24"]
[EventType "team-tourn"]
[EventCountry "ROU"]
[SourceTitle "playchess.com"]
[Source "ChessBase"]
[SourceQuality "1"]
[TimeControl "40/5400+30:1800+30"]

1. d4 {[%emt 0:00:00]} f5 {[%emt 0:00:00]} 2. Nc3 {[%emt 0:00:00]} Nf6 {[%emt 0:00:00]} 3. Bg5 {[%emt 0:00:00]} e6 {[%emt 0:00:03]} 4. e4 {[%emt 0:00:31]} fxe4 {[%emt 0:00:18]} 5. Nxe4 {[%emt 0:00:16]} Be7 {[%emt 0:00:32]} 6. Bxf6 {[%emt 0:00:21]} Bxf6 {[%emt 0:00:11]} 7. Qh5+ {[%emt 0:00:19]} g6 {[%emt 0:01:54]} 8. Qh6 {[%emt 0:01:20]} Nc6 {[%emt 0:04:29]} 9. c3 {[%emt 0:00:31] A83: Dutch Defence: Staunton Gambit with 3 Nc3 Nf6 4 Bg5} d5 {[%emt 0:00:42]} (9... Qe7 10. Nxf6+ Qxf6 11. O-O-O b6 12. f4 Bb7 13. Nf3 Ne7 14. Ne5 O-O-O 15. Rg1 {½-½ (15) Khruschiov,A (2430)-Kazakovskiy,V (2342) Moscow 2015}) 10. Nxf6+ {[%emt 0:00:34] Qxf} Qxf6 {[%emt 0:00:07]} 11. Bb5 {[%emt 0:00:34]} Bd7 {[%emt 0:07:43]} 12. Nf3 {[%emt 0:01:42]} O-O-O {[%emt 0:02:08]} 13. Bxc6 {[%emt 0:02:31]} Bxc6 {[%emt 0:00:10]} 14. O-O $146 {[%emt 0:00:19]} ({Predecessor:} 14. O-O-O Bb5 15. Rhe1 Ba4 16. Rd2 Qf5 {1-0 (42) Da Ces,P (1975)-Acar,E (1473) Gelsenkirchen 2017}) 14... Bb5 {[%emt 0:03:18]} 15. Rfe1 {[%emt 0:01:18]} Rhf8 {[%emt 0:02:35]} 16. Re3 {[%emt 0:01:14]} Rde8 {[%emt 0:05:27]} 17. Qg5 {[%emt 0:03:46]} Qg7 {[%emt 0:05:02]} 18. Rae1 {[%emt 0:02:13]} h6 {[%emt 0:06:13]} 19. Qg4 {[%emt 0:01:42]} Bd7 {[%emt 0:03:15]} 20. Ne5 {[%emt 0:00:10]} Rf6 {[%emt 0:06:48]} 21. h4 {[%emt 0:04:34]} Kb8 {[%emt 0:03:36]} 22. Rf3 {[%emt 0:01:24]} Ref8 {[%emt 0:28:12]} 23. Ree3 {[%emt 0:02:25]} Rxf3 {[%emt 0:02:26]} 24. Rxf3 {[%emt 0:00:10]} Rxf3 {[%emt 0:02:25]} 25. Qxf3 {[%emt 0:00:25]} Be8 {[%emt 0:03:09]} 26. Kh2 {[%emt 0:00:21]} Kc8 {[%emt 0:00:30]} 27. g4 {[%emt 0:00:32]} Kd8 {[%emt 0:00:38]} 28. g5 {[%emt 0:00:20]} hxg5 {[%emt 0:01:56]} 29. hxg5 {[%emt 0:00:05]} Qe7 {[%emt 0:04:52]} 30. Qf6 {[%emt 0:00:27]} b6 {[%emt 0:00:59]} 31. Kg3 {[%emt 0:00:23]} c5 {[%emt 0:00:39]} 32. b4 {[%emt 0:01:50]} cxb4 {[%emt 0:01:04]} 33. cxb4 {[%emt 0:00:01]} a5 {[%emt 0:00:09]} 34. bxa5 {[%emt 0:00:43]} bxa5 {[%emt 0:00:08]} 35. Kf4 {[%emt 0:00:18]} a4 {[%emt 0:01:16]} 36. a3 {[%emt 0:00:07]} Bb5 {[%emt 0:00:32]} 37. Nxg6 {[%emt 0:01:08]} Qxf6+ {[%emt 0:00:13]} 38. gxf6 {[%emt 0:00:02]} Ke8 {[%emt 0:01:11]} 39. Ke5 {[%emt 0:00:52]} Bd7 {[%emt 0:01:18]} 40. Nf4 {[%emt 0:00:00]} Kf7 {[%emt 0:00:00]} 41. Nd3 {[%emt 0:01:30]} 1-0

[Event "ROU-chT Men Superliga 2018"]
[Site "Sovata"]
[Date "2018.12.01"]
[Round "8"]
[White "Vasiesiu, Victor"]
[Black "Dobre, Mihai"]
[Result "1/2-1/2"]
[ECO "B23"]
[WhiteElo "2270"]
[BlackElo "2104"]
[Annotator "NA"]
[PlyCount "89"]
[EventDate "2018.11.24"]
[EventType "team-tourn"]
[EventCountry "ROU"]
[SourceTitle "playchess.com"]
[Source "ChessBase"]
[SourceQuality "1"]
[TimeControl "40/5400+30:1800+30"]

1. e4 {[%emt 0:00:00]} c5 {[%emt 0:00:00]} 2. Nc3 {[%emt 0:00:00]} e6 {[%emt 0:00:26]} 3. f4 {[%emt 0:00:27]} Nc6 {[%emt 0:02:41]} 4. Nf3 {[%emt 0:00:08]} a6 {[%emt 0:00:45]} 5. d4 {[%emt 0:01:26]} d5 {[%emt 0:06:10]} 6. e5 {[%emt 0:02:54]} Nh6 {[%emt 0:04:49]} 7. Ne2 {[%emt 0:01:25]} Nf5 {[%emt 0:02:00]} 8. c3 {[%emt 0:00:35]} h5 {[%emt 0:09:59]} 9. Ng3 {[%emt 0:04:15]} Nh4 {[%emt 0:03:18]} 10. Be3 {[%emt 0:24:39]} Nxf3+ {[%emt 0:04:59]} 11. Qxf3 {[%emt 0:00:10]} cxd4 {[%emt 0:00:12]} 12. cxd4 {[%emt 0:00:09]} Qa5+ {[%emt 0:11:49]} 13. Kf2 {[%emt 0:02:02]} Qb4 {[%emt 0:00:27]} 14. Rd1 {[%emt 0:00:56]} g6 {[%emt 0:10:40]} 15. Rd2 {[%emt 0:04:27]} Qa4 {[%emt 0:09:54]} 16. a3 {[%emt 0:02:10]} Na5 {[%emt 0:03:50]} 17. Bd3 {[%emt 0:00:49]} Bd7 {[%emt 0:01:15]} 18. Ne2 {[%emt 0:03:36]} Rc8 {[%emt 0:02:18]} 19. Rc1 {[%emt 0:20:48]} Rxc1 {[%emt 0:00:19]} 20. Nxc1 {[%emt 0:00:07]} Be7 {[%emt 0:02:33]} 21. Rc2 {[%emt 0:02:51]} Bd8 {[%emt 0:02:23]} 22. Qd1 {[%emt 0:07:42]} Nc6 {[%emt 0:04:06]} 23. Ne2 {[%emt 0:04:52]} Bb6 {[%emt 0:01:05]} 24. Rc1 {[%emt 0:02:00]} Qxd1 {[%emt 0:00:08]} 25. Rxd1 {[%emt 0:00:04]} Ke7 {[%emt 0:00:45]} 26. h3 {[%emt 0:03:01]} Rc8 {[%emt 0:00:10]} 27. g4 {[%emt 0:01:00]} Rh8 {[%emt 0:02:35]} 28. Kg3 {[%emt 0:01:10]} g5 {[%emt 0:01:04]} 29. f5 {[%emt 0:03:24]} Nxe5 {[%emt 0:04:53]} 30. Bxg5+ {[%emt 0:00:07]} f6 {[%emt 0:00:03]} 31. dxe5 {[%emt 0:00:10]} fxg5 {[%emt 0:00:07]} 32. f6+ {[%emt 0:00:12]} Kf7 {[%emt 0:00:17]} 33. gxh5 {[%emt 0:00:18]} Rxh5 {[%emt 0:00:38]} 34. Kg4 {[%emt 0:01:16]} Rh4+ {[%emt 0:00:30]} 35. Kxg5 {[%emt 0:00:28]} Rxh3 {[%emt 0:00:13]} 36. Bg6+ {[%emt 0:03:11]} Kf8 {[%emt 0:00:01]} 37. Rd3 {[%emt 0:02:03]} Rh1 {[%emt 0:08:04]} 38. Nf4 {[%emt 0:01:17]} Rg1+ {[%emt 0:00:26]} 39. Kh6 {[%emt 0:00:24]} Re1 {[%emt 0:00:06]} 40. Bh7 {[%emt 0:00:00]} Be3 {[%emt 0:00:00]} 41. Rxe3 {[%emt 0:04:53]} Rxe3 {[%emt 0:00:40]} 42. Ng6+ {[%emt 0:00:08]} Kf7 {[%emt 0:00:46]} 43. Nh8+ {[%emt 0:00:06]} Kf8 {[%emt 0:00:43]} 44. Ng6+ {[%emt 0:00:07]} Kf7 {[%emt 0:00:14]} 45. Nh8+ {[%emt 0:01:41]} 1/2-1/2

[Event "ROU-chT Men Superliga 2018"]
[Site "Sovata"]
[Date "2018.12.01"]
[Round "8"]
[White "Szabo, Attila"]
[Black "Vajda, Levente"]
[Result "0-1"]
[ECO "C41"]
[WhiteElo "2263"]
[BlackElo "2547"]
[Annotator "RC"]
[PlyCount "54"]
[EventDate "2018.11.24"]
[EventType "team-tourn"]
[EventCountry "ROU"]
[SourceTitle "playchess.com"]
[Source "ChessBase"]
[SourceQuality "1"]
[TimeControl "40/5400+30:1800+30"]

1. e4 {[%emt 0:00:00]} d6 {[%emt 0:00:00]} 2. d4 {[%emt 0:00:00]} Nf6 {[%emt 0:00:01]} 3. Nc3 {[%emt 0:00:32]} e5 {[%emt 0:00:09]} 4. Nf3 {[%emt 0:01:43]} Nbd7 {[%emt 0:00:30]} 5. Bc4 {[%emt 0:03:19]} Be7 {[%emt 0:00:10]} 6. O-O {[%emt 0:01:14]} O-O {[%emt 0:00:19]} 7. Re1 {[%emt 0:00:39]} c6 {[%emt 0:00:32]} 8. a4 {[%emt 0:00:28]} b6 {[%emt 0:02:20]} 9. b3 {[%emt 0:10:05]} a6 {[%emt 0:01:26]} 10. Ba3 {[%emt 0:04:03]} Bb7 {[%emt 0:03:03]} 11. Qd2 {[%emt 0:02:07]} b5 {[%emt 0:01:34]} 12. axb5 {[%emt 0:03:14]} axb5 {[%emt 0:00:54]} 13. dxe5 {[%emt 0:17:21]} Rxa3 {[%emt 0:09:00]} 14. Rxa3 {[%emt 0:01:41]} dxe5 {[%emt 0:00:16]} 15. Ra7 {[%emt 0:01:03]} Qb8 {[%emt 0:02:23]} 16. Rxb7 {[%emt 0:01:14]} Qxb7 {[%emt 0:00:08]} 17. Bf1 {[%emt 0:07:56]} Bb4 {[%emt 0:00:08]} 18. Re2 {[%emt 0:03:44]} Qb6 {[%emt 0:11:25]} 19. h3 {[%emt 0:15:44]} Qa5 {[%emt 0:04:39]} 20. Re3 {[%emt 0:00:31]} Nc5 {[%emt 0:06:16]} 21. Nxe5 {[%emt 0:05:44]} Ncxe4 {[%emt 0:01:49]} 22. Nxc6 {[%emt 0:02:08]} Nxd2 {[%emt 0:02:26]} 23. Nxa5 {[%emt 0:00:34]} Nxf1 {[%emt 0:00:15]} 24. Kxf1 {[%emt 0:00:11]} Bxa5 {[%emt 0:00:05]} 25. Nxb5 {[%emt 0:00:08]} Rd8 {[%emt 0:00:22]} 26. c3 {[%emt 0:04:50]} Rd1+ {[%emt 0:02:50]} 27. Re1 {[%emt 0:01:31]} Rd5 {[%emt 0:00:41]} 0-1

[Event "ROU-chT Men Superliga 2018"]
[Site "Sovata"]
[Date "2018.12.01"]
[Round "8"]
[White "Scripcaru, George-Daniel"]
[Black "Ognean, Mihnea-Ionut"]
[Result "1/2-1/2"]
[ECO "A04"]
[WhiteElo "2176"]
[BlackElo "2291"]
[Annotator "NA"]
[PlyCount "54"]
[EventDate "2018.11.24"]
[EventType "team-tourn"]
[EventCountry "ROU"]
[SourceTitle "playchess.com"]
[Source "ChessBase"]
[SourceQuality "1"]
[TimeControl "40/5400+30:1800+30"]

1. Nf3 {[%emt 0:00:02]} c5 {[%emt 0:00:00]} 2. g3 {[%emt 0:00:42]} Nc6 {[%emt 0:00:00]} 3. Bg2 {[%emt 0:00:06]} g6 {[%emt 0:00:04]} 4. O-O {[%emt 0:00:25]} Bg7 {[%emt 0:00:03]} 5. d3 {[%emt 0:00:38]} e6 {[%emt 0:00:26]} 6. e4 {[%emt 0:01:26]} Nge7 {[%emt 0:00:14]} 7. Nbd2 {[%emt 0:01:39]} O-O {[%emt 0:00:25]} 8. Re1 {[%emt 0:00:36]} d5 {[%emt 0:04:01]} 9. Qe2 {[%emt 0:06:48]} b6 {[%emt 0:06:07]} 10. e5 {[%emt 0:01:54]} f6 {[%emt 0:01:58]} 11. exf6 {[%emt 0:02:28]} Bxf6 {[%emt 0:01:39]} 12. Nf1 {[%emt 0:02:16]} Nf5 {[%emt 0:03:24]} 13. c3 {[%emt 0:00:53]} Qe7 {[%emt 0:22:44]} 14. Ne3 {[%emt 0:01:25]} Nxe3 {[%emt 0:10:31]} 15. Bxe3 {[%emt 0:00:09]} Bd7 {[%emt 0:00:18]} 16. Bh6 {[%emt 0:10:39]} Rf7 {[%emt 0:03:07]} 17. h4 {[%emt 0:00:33]} Qd6 {[%emt 0:02:40]} 18. Bf4 {[%emt 0:02:39]} Qf8 {[%emt 0:02:38]} 19. Ng5 {[%emt 0:04:51]} Bxg5 {[%emt 0:00:29]} 20. Bxg5 {[%emt 0:00:24]} Re8 {[%emt 0:00:09]} 21. Qd2 {[%emt 0:05:21]} Qd6 {[%emt 0:01:09]} 22. Rf1 {[%emt 0:02:44]} Ne7 {[%emt 0:03:12]} 23. Rae1 {[%emt 0:01:51]} Nf5 {[%emt 0:01:13]} 24. g4 {[%emt 0:03:53]} Ng7 {[%emt 0:05:08]} 25. f4 {[%emt 0:06:29]} d4 {[%emt 0:04:01]} 26. c4 {[%emt 0:01:19]} Bc6 {[%emt 0:00:06]} 27. Bh6 {[%emt 0:00:35]} Bxg2 {[%emt 0:06:23]} 1/2-1/2

[Event "ROU-chT Men Superliga 2018"]
[Site "Sovata"]
[Date "2018.12.01"]
[Round "8"]
[White "Ciorica, Mihai-Vlad"]
[Black "Baratosi, Daniel"]
[Result "1/2-1/2"]
[ECO "A04"]
[WhiteElo "2097"]
[BlackElo "2373"]
[Annotator "NA"]
[PlyCount "41"]
[EventDate "2018.11.24"]
[EventType "team-tourn"]
[EventCountry "ROU"]
[SourceTitle "playchess.com"]
[Source "ChessBase"]
[SourceQuality "1"]
[TimeControl "40/5400+30:1800+30"]

1. Nf3 {[%emt 0:00:00]} g6 {[%emt 0:00:00]} 2. g3 {[%emt 0:00:00]} Bg7 {[%emt 0:00:00]} 3. Bg2 {[%emt 0:00:04]} d6 {[%emt 0:01:48]} 4. d4 {[%emt 0:01:02]} f5 {[%emt 0:00:50]} 5. c3 {[%emt 0:10:01]} Nf6 {[%emt 0:01:36]} 6. Qb3 {[%emt 0:02:21]} e6 {[%emt 0:01:29]} 7. Bg5 {[%emt 0:02:54]} h6 {[%emt 0:02:09]} 8. Bxf6 {[%emt 0:00:58]} Qxf6 {[%emt 0:01:16]} 9. Nbd2 {[%emt 0:10:33]} Nc6 {[%emt 0:02:31]} 10. d5 {[%emt 0:11:01]} exd5 {[%emt 0:03:35]} 11. Qxd5 {[%emt 0:00:27]} Qf7 {[%emt 0:01:37]} 12. Qxf7+ {[%emt 0:01:56]} Kxf7 {[%emt 0:00:04]} 13. e3 {[%emt 0:00:30]} Rb8 {[%emt 0:01:36]} 14. O-O {[%emt 0:04:27]} Re8 {[%emt 0:02:38]} 15. Nd4 {[%emt 0:09:36]} Ne5 {[%emt 0:03:26]} 16. Nc4 {[%emt 0:06:01]} Kf8 {[%emt 0:07:35]} 17. Nxe5 {[%emt 0:01:03]} dxe5 {[%emt 0:04:45]} 18. Nb5 {[%emt 0:00:09]} c6 {[%emt 0:00:24]} 19. Nd6 {[%emt 0:00:20]} Rd8 {[%emt 0:00:05]} 20. Nxc8 {[%emt 0:00:05]} Rbxc8 {[%emt 0:00:03]} 21. Rfd1 {[%emt 0:01:07]} 1/2-1/2

[Event "ROU-chT Men Superliga 2018"]
[Site "Sovata"]
[Date "2018.12.01"]
[Round "8"]
[White "Andronescu, Madalin"]
[Black "Vasiesiu, Dan"]
[Result "0-1"]
[ECO "E97"]
[WhiteElo "2070"]
[BlackElo "2394"]
[Annotator "NA"]
[PlyCount "90"]
[EventDate "2018.11.24"]
[EventType "team-tourn"]
[EventCountry "ROU"]
[SourceTitle "playchess.com"]
[Source "ChessBase"]
[SourceQuality "1"]
[TimeControl "40/5400+30:1800+30"]

1. e4 {[%emt 0:00:00]} g6 {[%emt 0:00:00]} 2. d4 {[%emt 0:00:00]} Bg7 {[%emt 0:00:05]} 3. c4 {[%emt 0:00:23]} d6 {[%emt 0:00:39]} 4. Nc3 {[%emt 0:00:35]} Nf6 {[%emt 0:00:45]} 5. Be2 {[%emt 0:00:52]} O-O {[%emt 0:00:28]} 6. Nf3 {[%emt 0:00:40]} e5 {[%emt 0:01:12]} 7. O-O {[%emt 0:05:20]} Nc6 {[%emt 0:01:40]} 8. d5 {[%emt 0:00:04]} Ne7 {[%emt 0:00:09]} 9. b4 {[%emt 0:01:03]} Ne8 {[%emt 0:01:44]} 10. Ne1 {[%emt 0:01:58]} f5 {[%emt 0:00:43]} 11. Nd3 {[%emt 0:00:18]} Nf6 {[%emt 0:02:26]} 12. f3 {[%emt 0:01:14]} f4 {[%emt 0:00:32]} 13. c5 {[%emt 0:03:11]} g5 {[%emt 0:00:14]} 14. Bd2 {[%emt 0:07:31]} h5 {[%emt 0:01:56]} 15. Nf2 {[%emt 0:00:05]} Ng6 {[%emt 0:00:34]} 16. Rc1 {[%emt 0:00:28]} Rf7 {[%emt 0:01:10]} 17. h3 {[%emt 0:03:08] E99: King's Indian: Classical Main Line: 9 Ne1 Nd7 10 f3 f5} (17. cxd6 cxd6 18. a4 Bf8 19. h3 Rg7 20. Nb5 a6 21. Na3 Bd7 22. a5 b5 23. Rc3 Rc8 24. Rxc8 Bxc8 25. Qc2 g4 26. fxg4 hxg4 27. Rc1 g3 28. Qxc8 gxf2+ 29. Kxf2 Nxe4+ {0-1 (43) Arutinian,D (2562)-Baryshpolets,A (2474) Pardubice 2011}) 17... Bf8 {[%emt 0:01:09]} 18. Nb5 {[%emt 0:03:12]} a6 {[%emt 0:04:32]} 19. Na3 {[%emt 0:00:04]} Rg7 {[%emt 0:00:39]} 20. Be1 $146 {[%emt 0:07:50]} ({Predecessor:} 20. Rc3 a5 21. bxa5 dxc5 22. Nc4 Bd6 23. Rb3 Nh8 24. Bc3 Nf7 {0-1 (43) Yakimenko,A (2194)-Pavlidis,A (2352) Bansko 2010}) 20... Nh8 {[%emt 0:04:19]} 21. b5 {[%emt 0:11:51]} axb5 {[%emt 0:07:09]} 22. Nxb5 {[%emt 0:00:06]} dxc5 {[%emt 0:00:59]} 23. Nd3 {[%emt 0:01:16]} Nd7 {[%emt 0:05:05]} 24. Bf2 {[%emt 0:09:08]} b6 {[%emt 0:01:02]} 25. d6 {[%emt 0:00:04]} cxd6 {[%emt 0:14:04]} 26. Qb3+ {[%emt 0:01:21]} Nf7 {[%emt 0:01:26]} 27. Rfd1 {[%emt 0:00:23]} Kh7 {[%emt 0:04:26]} 28. Nb2 {[%emt 0:05:21]} Nf6 {[%emt 0:02:28]} 29. Bc4 {[%emt 0:01:02]} Nh6 {[%emt 0:01:16]} 30. Bd5 {[%emt 0:03:50]} Nxd5 {[%emt 0:04:03]} 31. Qxd5 {[%emt 0:00:18]} Bb7 {[%emt 0:00:48]} 32. Qb3 {[%emt 0:02:12]} g4 {[%emt 0:01:55]} 33. hxg4 {[%emt 0:07:51]} hxg4 {[%emt 0:00:30]} 34. Kf1 {[%emt 0:00:19]} g3 {[%emt 0:07:43]} 35. Bg1 {[%emt 0:00:12]} Bc6 {[%emt 0:02:49]} 36. Nc4 {[%emt 0:02:27]} Nf7 {[%emt 0:02:55]} 37. Rd2 {[%emt 0:01:59]} Qd7 {[%emt 0:11:39]} 38. Nc3 $19 {[%emt 0:01:38]} (38. Nxb6 $17 Bxb5+ 39. Ke1) 38... Rb8 {[%emt 0:00:32]} 39. Nxb6 {[%emt 0:03:40]} Qa7 {[%emt 0:01:43]} 40. Rb1 {[%emt 0:00:00]} Ng5 {[%emt 0:00:00]} 41. Rdb2 {[%emt 0:02:57]} Rgb7 {[%emt 0:03:27]} 42. Nca4 {[%emt 0:00:09]} Be7 {[%emt 0:03:38]} 43. Qd1 {[%emt 0:05:15]} Kg7 {[%emt 0:05:02]} 44. Ke1 {[%emt 0:01:09]} Nf7 {[%emt 0:00:45]} 45. Rb3 {[%emt 0:08:01]} Bd8 {[%emt 0:02:31]} 0-1

[Event "ROU-chT Men Superliga 2018"]
[Site "Sovata"]
[Date "2018.12.02"]
[Round "9"]
[White "Petrisor, Adrian-Marian"]
[Black "Carmaciu, Lucian-Catalin"]
[Result "1/2-1/2"]
[ECO "B06"]
[WhiteElo "2425"]
[BlackElo "2374"]
[Annotator "NA"]
[PlyCount "43"]
[EventDate "2018.11.24"]
[EventType "team-tourn"]
[EventCountry "ROU"]
[SourceTitle "playchess.com"]
[Source "ChessBase"]
[SourceQuality "1"]
[TimeControl "40/5400+30:1800+30"]

{[%evp 14,43,22,19,15,0,14,7,14,2,20,6,70,20,32767,32767,22,35,46,32767,54,44,50,33,54,54,52,20,15,11,6,13]} 1. e4 {[%emt 0:00:00]} g6 {[%emt 0:00:00]} 2. d4 {[%emt 0:00:00]} Bg7 {[%emt 0:00:00]} 3. Nc3 {[%emt 0:00:20]} c6 {[%emt 0:00:03]} 4. Bc4 {[%emt 0:02:46]} d6 {[%emt 0:02:40]} 5. Qf3 {[%emt 0:04:45]} e6 {[%emt 0:01:36]} 6. Nge2 {[%emt 0:00:21]} b5 {[%emt 0:03:11]} 7. Bd3 {[%emt 0:01:46]} e5 {[%emt 0:03:23] B06: Modern Defence} (7... Nd7 8. Qg3 b4 9. Nd1 e5 10. c3 a5 11. O-O Ngf6 12. f4 exd4 13. cxd4 O-O 14. e5 Nd5 15. Ne3 Nxe3 16. Bxe3 dxe5 {0-1 (26) Barbero Sendic,A (2388)-Del Rio de Angelis,S (2525) Escaldes 2018}) 8. dxe5 {[%emt 0:02:03]} dxe5 {[%emt 0:00:17]} 9. a4 {[%emt 0:03:44] LiveBook: 3 Games} b4 $1 {[%emt 0:00:30]} 10. Nd1 {[%emt 0:00:12]} a5 {[%emt 0:02:14]} 11. Ne3 $146 {[%emt 0:00:22]} ({Predecessor:} 11. Bc4 Nf6 12. Ne3 Nbd7 13. O-O O-O 14. c3 Nc5 15. Ng3 {0-1 (32) Ostrowski,L (2355)-Petran,P (2325) Bardejov 1996}) 11... Nd7 {[%emt 0:00:34]} 12. Nc4 {[%emt 0:02:13]} Qe7 {[%emt 0:00:16]} ({Black should try} 12... Nc5 $1 $11) 13. h4 {[%emt 0:05:32]} Ngf6 {[%emt 0:05:00]} 14. Bg5 {[%emt 0:02:26]} h6 {[%emt 0:00:48]} 15. Be3 {[%emt 0:00:35]} h5 {[%emt 0:21:09]} 16. Nc1 {[%emt 0:02:26]} Ba6 {[%emt 0:06:34]} 17. Nb3 {[%emt 0:06:51]} Bxc4 $1 {[%emt 0:01:19]} 18. Bxc4 {[%emt 0:00:33]} Ng4 {[%emt 0:07:55]} 19. Rd1 {[%emt 0:13:02]} Bf6 {[%emt 0:08:24]} 20. g3 {[%emt 0:03:48]} Nxe3 {[%emt 0:07:21]} 21. Qxe3 {[%emt 0:00:56]} Bg7 {[%emt 0:01:45]} 22. O-O $11 {[%emt 0:13:35]} 1/2-1/2